bitfinex-derivatives/quotes_ETHF0:USTF0_20250314
["timestamp","ask_amount","ask_price","bid_price","bid_amount"]
[1741946537796,1.447,1893.9,1893.7,3.2078]
[1741946537994,2.50396,1893.8,1893.7,4.26397]
[1741946539394,1.05623,1893.7,1893.6,1.05624]
[1741946539591,2.50403,1893.7,1893.6,1.05624]
[1741946539894,1.4478,1893.7,1893.6,1.05624]
[1741946540097,2.50401,1893.7,1893.6,1.05624]
[1741946540395,1.4478,1893.7,1893.6,1.05624]
[1741946541999,2.285,1894.0,1893.8,1.05615]
[1741946542197,1.403,1893.9,1893.5,6.53547]
[1741946542399,1.05617,1893.8,1893.7,1.05617]
[1741946545002,1.05618,1893.8,1893.7,1.05619]
[1741946545701,1.05619,1893.8,1893.7,1.05619]
[1741946547399,2.4591,1893.9,1893.8,1.05616]
[1741946547600,3.688,1893.9,1893.8,1.05616]
[1741946547796,3.688,1893.9,1893.8,1.73806]
[1741946548002,3.688,1893.9,1893.8,3.13526]
[1741946548197,0.6577,1894.1,1894.0,1.05605]
[1741946548403,2.0904,1894.1,1893.9,2.077]
[1741946548704,3.14639,1894.1,1894.0,1.3972]
[1741946548905,1.71369,1894.1,1894.0,1.3972]
[1741946549196,1.71369,1894.1,1894.0,2.45325]
[1741946549394,0.90339982,1894.3,1894.0,1.3972]
[1741946549591,3.34098,1894.2,1894.1,1.3972]
[1741946549797,2.285,1894.2,1894.1,2.45319]
[1741946550599,3.34093,1894.2,1894.1,1.3972]
[1741946550896,3.34093,1894.2,1894.1,2.45319]
[1741946552503,3.34093,1894.2,1894.1,1.3972]
[1741946552804,1.05599,1894.1,1893.9,1.73585]
[1741946552999,3.34098,1894.2,1894.1,1.05599]
[1741946553198,2.285,1894.2,1894.0,1.3739]
[1741946553499,1.75189,1894.1,1894.0,1.3739]
[1741946553701,1.75189,1894.1,1893.8,0.6819]
[1741946553702,0.6959,1894.1,1893.8,0.6819]
[1741946553900,1.0561,1893.9,1893.8,1.3739]
[1741946554403,1.05616,1893.8,1893.7,4.9739]
[1741946554607,1.75206,1893.8,1893.7,6.3478]
[1741946554801,0.6959,1893.8,1893.5,3.2078]
[1741946555105,0.6959,1893.8,1893.7,1.05621]
[1741946555403,3.34112,1893.9,1893.8,1.05616]
[1741946556314,3.34112,1893.9,1893.8,1.4454]
[1741946556698,3.28628651,1893.9,1893.8,2.50156]
[1741946557097,2.23016651,1893.9,1893.8,2.50156]
[1741946558311,2.285,1894.0,1893.9,1.0561]
[1741946558503,2.285,1894.0,1893.9,3.2013]
[1741946558808,3.34105,1894.0,1893.9,1.4454]
[1741946558999,3.34105,1894.0,1893.9,2.5015]
[1741946559206,3.34105,1894.0,1893.9,1.4454]
[1741946559507,3.34105,1894.0,1893.9,2.5015]
[1741946560304,3.34105,1894.0,1893.9,1.4454]
[1741946561208,3.34105,1894.0,1893.9,2.5015]
[1741946561800,2.285,1894.0,1893.9,2.5015]
[1741946562007,3.34105,1894.0,1893.9,2.5015]
[1741946562201,2.285,1894.0,1893.7,0.7187]
[1741946562400,0.6728,1893.9,1893.7,2.0935]
[1741946562707,1.72891,1893.9,1893.8,1.05616]
[1741946562901,1.72891,1893.9,1893.8,1.3748]
[1741946563101,1.72891,1893.9,1893.8,2.43096]
[1741946563303,1.7289,1893.9,1893.8,2.43096]
[1741946563707,3.1728,1893.9,1893.5,3.2078]
[1741946564008,3.913,1893.8,1893.1,4.5826]
[1741946564209,1.05635,1893.5,1893.4,1.05636]
[1741946564407,2.295,1893.7,1893.6,1.05627]
[1741946564710,6.211,1893.8,1893.4,2.7908]
[1741946564913,1.05624,1893.7,1893.5,2.43109]
[1741946565214,1.05624,1893.7,1893.6,1.4395]
[1741946566812,1.05632,1893.5,1893.4,1.416]
[1741946567205,2.64056,1893.7,1893.2,5.978]
[1741946567416,1.05645,1893.3,1893.2,1.05648]
[1741946568013,1.05645,1893.3,1893.1,4.5641]
[1741946568206,1.05645,1893.3,1893.2,2.48929]
[1741946568409,1.05645,1893.3,1893.2,1.4328]
[1741946575117,1.05645,1893.3,1893.2,2.48929]
[1741946575317,1.05645,1893.3,1893.2,1.4328]
[1741946576120,1.4515,1893.4,1893.2,1.4328]
[1741946576320,4.80393,1893.4,1893.3,1.05644]
[1741946577322,2.50793,1893.4,1893.3,1.05644]
[1741946577522,1.05643,1893.4,1893.3,1.05644]
[1741946577720,6.56111,1893.6,1893.4,1.05638]
[1741946577923,6.56111,1893.6,1893.5,2.7861]
[1741946577924,8.00181,1893.6,1893.5,2.7861]
[1741946578221,6.56111,1893.6,1893.5,2.7861]
[1741946578624,6.56111,1893.6,1893.5,3.84242]
[1741946579021,6.56111,1893.6,1893.5,2.7861]
[1741946579226,1.05631,1893.6,1893.5,3.84242]
[1741946579732,1.05631,1893.6,1893.5,2.7861]
[1741946580026,1.05631,1893.6,1893.5,3.84242]
[1741946581630,1.05631,1893.6,1893.5,2.7861]
[1741946584448,1.05631,1893.6,1893.5,2.1205]
[1741946584845,1.05631,1893.6,1893.5,0.6881]
[1741946587155,6.1935,1893.7,1893.4,1.4531]
[1741946587351,1.05632,1893.5,1893.4,1.4531]
[1741946587945,1.05632,1893.5,1893.4,2.1714]
[1741946589343,1.05632,1893.5,1893.4,3.22778]
[1741946589541,1.05632,1893.5,1893.4,2.1714]
[1741946591037,1.05632,1893.5,1893.4,3.22778]
[1741946591643,6.1935,1893.7,1893.4,2.1714]
[1741946591845,1.05631,1893.6,1893.5,2.46929]
[1741946592840,1.05631,1893.6,1893.5,2.46932]
[1741946593039,6.56006,1893.7,1893.6,1.05627]
[1741946593240,6.56006,1893.7,1893.6,3.20757]
[1741946594042,6.56006,1893.7,1893.6,2.1513]
[1741946594944,6.56006,1893.7,1893.6,3.20757]
[1741946595741,6.56006,1893.7,1893.6,2.1513]
[1741946597150,3.35226,1893.7,1893.6,2.1513]
[1741946597638,4.73396,1893.7,1893.6,2.1513]
[1741946597950,3.6777,1893.7,1893.6,3.20757]
[1741946598152,4.73391,1893.7,1893.6,3.20757]
[1741946598346,1.3817,1893.7,1893.6,3.20757]
[1741946598553,0.00792205,1893.8,1893.7,1.05621]
[1741946598856,0.00792205,1893.8,1893.7,3.14871]
[1741946603654,1.32782205,1893.8,1893.7,3.14871]
[1741946606756,1.32782205,1893.8,1893.7,6.35651]
[1741946610354,0.00792205,1893.8,1893.7,6.35651]
[1741946615254,1.36772205,1893.8,1893.7,6.35651]
[1741946617651,1.36772205,1893.8,1893.7,3.2078]
[1741946617959,2.07212205,1893.8,1893.7,1.05621]
[1741946618162,1.36772205,1893.8,1893.7,2.40941]
[1741946618461,1.36772205,1893.8,1893.7,5.61721]
[1741946619261,1.36772205,1893.8,1893.7,2.40941]
[1741946620572,1.36772205,1893.8,1893.7,5.61721]
[1741946620869,1.36772205,1893.8,1893.7,2.40941]
[1741946622971,1.36772205,1893.8,1893.7,5.61721]
[1741946624673,4.03758,1894.2,1894.0,1.056]
[1741946624868,4.03758,1894.2,1894.1,1.3184]
[1741946626071,5.47328,1894.2,1894.1,1.3184]
[1741946626272,1.05599,1894.1,1894.0,0.00792205]
[1741946626461,3.16839,1894.1,1894.0,1.33402205]
[1741946627275,3.16839,1894.1,1894.0,2.39007205]
[1741946629780,3.16839,1894.1,1894.0,1.33402205]
[1741946629978,3.16839,1894.1,1894.0,0.00792205]
[1741946630175,2.1124,1894.1,1894.0,2.41437205]
[1741946630570,3.16839,1894.1,1894.0,2.41437205]
[1741946631477,2.1124,1894.1,1894.0,2.41437205]
[1741946631674,1.4357,1894.1,1894.0,2.41437205]
[1741946632981,2.49169,1894.1,1894.0,2.41437205]
[1741946633681,1.4357,1894.1,1894.0,2.41437205]
[1741946634383,2.49169,1894.1,1894.0,1.35832205]
[1741946634575,2.49169,1894.1,1894.0,0.00792205]
[1741946636882,2.57855116,1894.1,1894.0,0.00792205]
[1741946637082,1.52256116,1894.1,1893.6,9.1858]
[1741946637282,1.05621,1893.7,1893.6,4.26407]
[1741946637483,1.05627,1893.6,1893.5,0.6893]
[1741946637781,2.0523,1893.6,1893.4,2.47246]
[1741946638091,1.05632,1893.5,1893.4,2.47246]
[1741946638279,2.36932,1893.5,1893.4,2.47246]
[1741946638678,1.313,1893.5,1893.4,2.47246]
[1741946638980,2.285,1893.8,1893.4,2.47246]
[1741946638981,2.285,1893.8,1893.7,1.05621]
[1741946639180,1.313,1893.8,1893.7,1.05621]
[1741946639776,1.313,1893.8,1893.7,2.0641]
[1741946639982,1.313,1893.8,1893.7,3.12031]
[1741946640985,2.36916,1893.8,1893.7,3.12031]
[1741946641186,1.313,1893.8,1893.7,3.12031]
[1741946641785,2.36916,1893.8,1893.7,2.0641]
[1741946642782,2.36916,1893.8,1893.6,1.75923]
[1741946642991,2.40611,1893.7,1893.6,3.13353]
[1741946643185,2.40611,1893.7,1893.6,2.0773]
[1741946643378,1.05627,1893.6,1893.5,4.26409]
[1741946643581,2.0057,1893.6,1893.5,5.63839]
[1741946643988,1.3499,1893.6,1893.5,5.63839]
[1741946645103,2.9955,1893.9,1893.8,1.05616]
[1741946645402,2.9955,1893.9,1893.7,1.05618]
[1741946645591,1.05616,1893.8,1893.7,1.05618]
[1741946646013,2.9955,1893.9,1893.5,3.2078]
[1741946646215,1.05616,1893.8,1893.7,1.05616]
[1741946646407,2.39046,1893.8,1893.7,1.05616]
[1741946646893,2.39046,1893.8,1893.7,1.72146]
[1741946649199,2.39046,1893.8,1893.7,0.6653]
[1741946649597,1.05621,1893.7,1893.6,2.39484]
[1741946649797,2.37671,1893.7,1893.6,2.39484]
[1741946650799,1.3205,1893.7,1893.6,2.39484]
[1741946652999,2.285,1893.9,1893.6,3.9792]
[1741946653196,1.4345,1893.8,1893.7,1.4174]
[1741946653404,1.05625,1893.7,1893.6,1.05625]
[1741946653701,0.6886,1893.7,1893.6,2.43895]
[1741946653894,2.4907,1893.8,1893.7,1.05621]
[1741946654093,1.0562,1893.8,1893.7,2.43891]
[1741946655799,1.0562,1893.8,1893.7,1.3827]
[1741946657095,1.0562,1893.8,1893.5,3.9068]
[1741946657096,1.05627,1893.6,1893.5,3.9068]
[1741946657291,1.05627,1893.6,1893.5,5.2917]
[1741946657505,1.05627,1893.6,1893.5,6.34802]
[1741946657803,1.05627,1893.6,1893.5,5.2917]
[1741946658301,1.05627,1893.6,1893.5,2.0839]
[1741946658499,1.05627,1893.6,1893.4,0.6792]
[1741946658806,1.05632,1893.5,1893.4,2.0641]
[1741946659499,2.285,1893.6,1893.3,0.7194]
[1741946659500,1.05638,1893.4,1893.3,0.7194]
[1741946659706,1.73668,1893.4,1893.3,1.77584]
[1741946660096,1.73668,1893.4,1893.3,2.0335]
[1741946660501,0.6803,1893.4,1893.1,9.1858]
[1741946660799,1.05644,1893.3,1893.2,1.3141]
[1741946662005,3.34144,1893.3,1893.2,1.3141]
[1741946662803,2.285,1893.3,1893.2,1.3141]
[1741946663108,3.34144,1893.3,1893.2,2.37059]
[1741946663499,2.285,1893.3,1893.2,2.37059]
[1741946664607,1.05635,1893.5,1893.4,1.05637]
[1741946664799,3.34132,1893.5,1893.4,1.05637]
[1741946664994,1.05638,1893.4,1893.3,2.45069]
[1741946667609,2.41508,1893.4,1893.3,2.45069]
[1741946668012,1.3587,1893.4,1893.3,2.45069]
[1741946668803,2.285,1893.5,1893.3,4.6021]
[1741946669102,1.3716,1893.6,1893.5,1.05632]
[1741946669507,1.3716,1893.6,1893.5,2.44562]
[1741946670013,3.6566,1893.8,1893.5,2.44559]
[1741946670215,2.42781,1893.7,1893.6,1.3893]
[1741946670914,1.05632,1893.5,1893.4,0.6649]
[1741946671214,1.05632,1893.5,1893.4,2.0542]
[1741946671604,2.47502,1893.5,1893.4,2.0542]
[1741946671903,2.47502,1893.5,1893.4,3.11056]
[1741946673108,4.76002,1893.5,1893.4,2.0542]
[1741946673303,1.05638,1893.4,1893.3,3.2078]
[1741946673508,2.47508,1893.4,1893.3,4.5774]
[1741946675115,2.47508,1893.4,1893.3,3.2078]
[1741946675518,2.47508,1893.4,1893.3,4.6043]
[1741946675720,2.47508,1893.4,1893.3,5.66074]
[1741946677810,2.47508,1893.4,1893.3,4.6043]
[1741946678210,2.47508,1893.4,1893.3,5.66074]
[1741946678406,1.05634,1893.5,1893.4,1.05634]
[1741946678720,2.46334,1893.5,1893.4,3.08084]
[1741946679014,2.285,1893.6,1893.5,1.05632]
[1741946679216,4.74827,1893.6,1893.5,2.37142]
[1741946680005,4.74827,1893.6,1893.5,1.3151]
[1741946683520,1.05632,1893.5,1893.4,0.7094]
[1741946683721,3.11792,1893.5,1893.4,2.1153]
[1741946687213,2.0616,1893.5,1893.3,3.2078]
[1741946687418,2.49658,1893.4,1893.3,1.4297]
[1741946688927,1.05644,1893.3,1893.2,0.682]
[1741946689121,2.49664,1893.3,1893.2,3.16819]
[1741946690130,2.49664,1893.3,1893.2,2.1117]
[1741946690832,2.49664,1893.3,1893.2,3.16819]
[1741946691025,2.49664,1893.3,1893.2,2.1117]
[1741946691221,2.49664,1893.3,1893.2,3.16819]
[1741946692220,2.49664,1893.3,1893.2,2.1117]
[1741946693229,2.49664,1893.3,1893.2,3.16819]
[1741946693832,0.90360869,1893.6,1893.2,2.1117]
[1741946694020,2.47302,1893.5,1893.4,1.05638]
[1741946694336,1.4167,1893.5,1893.4,2.40648]
[1741946695135,2.47302,1893.5,1893.4,2.40648]
[1741946695832,1.4167,1893.5,1893.4,2.40648]
[1741946696632,1.57140869,1893.8,1893.4,1.3501]
[1741946696937,3.7023,1893.7,1893.6,1.05627]
[1741946697121,1.4173,1893.7,1893.6,2.46447]
[1741946697326,1.4173,1893.7,1893.6,5.67227]
[1741946698139,2.285,1893.9,1893.6,4.616]
[1741946698333,4.7584,1893.9,1893.8,1.05616]
[1741946698830,3.7023,1893.9,1893.8,1.05616]
[1741946699231,6.39640869,1894.1,1893.7,1.4082]
[1741946699431,7.91711,1894.1,1894.0,1.05605]
[1741946699636,1.3683,1894.1,1894.0,1.05605]
[1741946699842,1.05595,1894.2,1894.1,1.05597]
[1741946700029,3.34095,1894.2,1894.1,1.05597]
[1741946700430,3.34095,1894.2,1894.1,2.49607]
[1741946700633,3.34095,1894.2,1894.1,1.4401]
[1741946701535,4.70925,1894.2,1894.1,1.4401]
[1741946701937,4.70925,1894.2,1894.1,2.49609]
[1741946702139,4.70925,1894.2,1894.1,1.4401]
[1741946702650,4.70925,1894.2,1894.1,2.49609]
[1741946702840,3.6533,1894.2,1894.1,2.49609]
[1741946703537,1.3683,1894.2,1894.1,2.49609]
[1741946704144,0.00792205,1894.3,1894.2,1.05593]
[1741946704345,1.34682205,1894.3,1894.2,2.40043]
[1741946705435,2.40270205,1894.3,1894.2,1.3445]
[1741946705844,2.40270205,1894.3,1894.0,9.8515]
[1741946705845,4.55462205,1894.3,1894.0,6.6437]
[1741946706047,1.05599,1894.1,1894.0,6.6437]
[1741946706341,1.05599,1894.1,1894.0,8.0484]
[1741946706532,2.46229,1894.1,1894.0,9.10445]
[1741946707639,2.46229,1894.1,1894.0,3.12645]
[1741946708734,2.46229,1894.1,1894.0,2.0704]
[1741946709333,4.74629,1894.1,1894.0,0.6657]
[1741946709534,1.05605,1894.0,1893.9,1.3352]
[1741946709743,2.37855,1894.0,1893.9,1.3352]
[1741946710037,2.64026,1893.9,1893.4,3.2078]
[1741946710241,1.05632,1893.5,1893.4,0.6871]
[1741946710636,1.05632,1893.5,1893.4,1.74348]
[1741946711642,1.3225,1893.7,1893.4,0.6871]
[1741946711941,1.3225,1893.7,1893.5,1.3739]
[1741946712144,2.37871,1893.7,1893.6,1.05627]
[1741946713945,2.37871,1893.7,1893.6,0.6618]
[1741946714443,2.37871,1893.7,1893.6,2.0357]
[1741946714946,2.37871,1893.7,1893.6,3.09197]
[1741946715745,1.3225,1893.7,1893.6,3.09197]
[1741946716151,2.37871,1893.7,1893.6,3.09197]
[1741946716844,2.37871,1893.7,1893.6,2.0357]
[1741946717044,2.37871,1893.7,1893.6,3.09197]
[1741946717454,1.3225,1893.7,1893.4,3.8949]
[1741946717649,1.05632,1893.5,1893.4,2.1242]
[1741946717840,3.34032,1893.5,1893.4,0.6871]
[1741946718037,2.284,1893.5,1893.4,1.74348]
[1741946718352,3.6563,1893.5,1893.4,1.74348]
[1741946718644,1.3723,1893.7,1893.6,1.05627]
[1741946718839,3.34018,1893.8,1893.6,3.2078]
[1741946718840,1.05618,1893.8,1893.6,3.2078]
[1741946719046,4.26387,1894.0,1893.7,0.668]
[1741946719248,7.92015,1894.0,1893.9,1.0561]
[1741946719947,7.92015,1894.0,1893.8,1.05612]
[1741946720247,1.3723,1893.9,1893.8,1.05612]
[1741946721040,2.4284,1893.9,1893.8,1.05612]
[1741946721441,1.3723,1893.9,1893.8,1.05612]
[1741946722655,1.05616,1893.8,1893.7,0.668]
[1741946722946,1.05621,1893.7,1893.6,5.978]
[1741946723248,6.42761,1893.7,1893.6,5.978]
[1741946723452,3.21981,1893.7,1893.6,5.978]
[1741946728057,2.1636,1893.7,1893.5,1.77671]
[1741946728352,2.44347,1893.6,1893.5,1.77672]
[1741946729257,1.05625,1893.7,1893.6,1.05625]
[1741946729453,2.295,1893.8,1893.5,0.7204]
[1741946729755,2.45446,1893.7,1893.6,1.05626]
[1741946730554,2.296,1893.9,1893.5,0.7204]
[1741946730858,1.05618,1893.8,1893.7,1.05618]
[1741946731059,2.45438,1893.8,1893.7,1.05618]
[1741946732948,1.05621,1893.7,1893.6,3.2078]
[1741946733151,2.41521,1893.7,1893.6,3.2078]
[1741946733348,3.10001,1893.7,1893.6,3.2078]
[1741946733552,1.05627,1893.6,1893.5,0.7204]
[1741946733750,2.41527,1893.6,1893.5,0.7204]
[1741946734857,2.41527,1893.6,1893.5,1.77672]
[1741946735558,1.359,1893.6,1893.5,1.77672]
[1741946735759,2.41527,1893.6,1893.5,1.77672]
[1741946736355,2.41527,1893.6,1893.5,0.7204]
[1741946737558,2.41527,1893.6,1893.5,3.18992]
[1741946739956,2.41527,1893.6,1893.5,2.1336]
[1741946740163,1.05632,1893.5,1893.4,4.26418]
[1741946740356,2.43862,1893.5,1893.4,5.66948]
[1741946740860,2.43862,1893.5,1893.4,1.4053]
[1741946744164,1.05644,1893.3,1893.2,3.2078]
[1741946744364,1.05644,1893.3,1893.2,4.6577]
[1741946744864,2.49654,1893.3,1893.2,4.6577]
[1741946746670,2.49654,1893.3,1893.2,1.4499]
[1741946747259,1.05655,1893.1,1893.0,5.65357]
[1741946747462,1.05655,1893.1,1893.0,4.597]
[1741946747672,1.05655,1893.1,1893.0,5.6536]
[1741946748572,2.46737205,1893.2,1893.1,1.05655]
[1741946748765,1.41082205,1893.2,1893.0,4.597]
[1741946748966,2.39055,1893.1,1893.0,5.65357]
[1741946749363,2.39055,1893.1,1893.0,4.597]
[1741946749872,1.06442205,1893.2,1893.1,1.05655]
[1741946750167,2.39842205,1893.2,1893.1,1.05655]
[1741946751168,0.00792205,1893.2,1893.1,1.05655]
[1741946751369,1.06441205,1893.2,1893.1,1.05655]
[1741946752761,0.00792205,1893.2,1893.1,1.05655]
[1741946753173,1.35952205,1893.2,1893.1,1.05655]
[1741946754066,0.00792205,1893.2,1893.1,1.05655]
[1741946755566,1.43512205,1893.2,1893.1,1.05655]
[1741946758575,0.00792205,1893.2,1893.1,1.05655]
[1741946762685,1.34392205,1893.2,1893.1,1.05655]
[1741946763079,0.00792205,1893.2,1893.1,1.05655]
[1741946764583,1.37522205,1893.2,1893.1,1.05655]
[1741946765585,1.05627,1893.6,1893.5,1.0563]
[1741946765984,1.05635,1893.5,1893.4,1.05635]
[1741946767085,2.51145,1893.5,1893.4,1.05635]
[1741946767286,2.51145,1893.5,1893.3,2.47052205]
[1741946767487,1.05635,1893.5,1893.4,1.3567]
[1741946767787,1.05635,1893.5,1893.4,2.41308]
[1741946767988,1.05635,1893.5,1893.4,1.3567]
[1741946768189,1.05635,1893.5,1893.4,2.41308]
[1741946768389,1.05632,1893.5,1893.4,2.41308]
[1741946769883,1.05632,1893.5,1893.4,1.3567]
[1741946770091,1.05638,1893.4,1893.3,0.00792205]
[1741946770291,4.04858,1893.4,1893.3,0.00792205]
[1741946774291,3.34138,1893.4,1893.3,1.06433205]
[1741946774488,3.34138,1893.4,1893.3,2.44233205]
[1741946775783,2.285,1893.4,1893.3,2.44233205]
[1741946775985,1.05636,1893.5,1893.3,1.38592205]
[1741946776183,1.05636,1893.5,1893.4,1.3914]
[1741946777379,4.55581046,1893.6,1893.3,1.76463205]
[1741946777593,4.55581046,1893.6,1893.3,0.70822205]
[1741946777594,1.05638,1893.4,1893.3,0.70822205]
[1741946777887,1.05638,1893.4,1893.3,0.00792205]
[1741946778797,1.05638,1893.4,1893.3,1.06436205]
[1741946779093,1.05638,1893.4,1893.3,0.00792205]
[1741946779595,1.05638,1893.4,1893.3,1.33902205]
[1741946781095,1.05638,1893.4,1893.3,0.00792205]
[1741946782395,1.05638,1893.4,1893.3,2.46076205]
[1741946785992,4.55581046,1893.6,1893.3,1.40432205]
[1741946786196,1.05638,1893.5,1893.4,1.3739]
[1741946787497,2.38728,1893.5,1893.4,1.3739]
[1741946788398,4.67228,1893.5,1893.4,2.43028]
[1741946788795,4.67228,1893.5,1893.4,1.3739]
[1741946788997,4.67228,1893.5,1893.4,2.43028]
[1741946789899,4.67228,1893.5,1893.4,1.3739]
[1741946793296,4.67228,1893.5,1893.4,2.43028]
[1741946793495,4.67228,1893.5,1893.4,3.79308]
[1741946794497,4.67228,1893.5,1893.4,2.7367]
[1741946795406,4.67228,1893.5,1893.4,3.79308]
[1741946796403,4.67228,1893.5,1893.4,2.7367]
[1741946796806,4.67228,1893.5,1893.4,2.0426]
[1741946798409,2.38728,1893.5,1893.4,2.0426]
[1741946798603,4.67128,1893.5,1893.4,2.0426]
[1741946802107,4.67128,1893.5,1893.4,3.09898]
[1741946803109,4.67128,1893.5,1893.4,2.0426]
[1741946803407,3.6149,1893.5,1893.4,2.0426]
[1741946803611,2.29192205,1893.6,1893.4,2.0426]
[1741946803810,1.43432205,1893.6,1893.5,2.41432]
[1741946804012,2.49059205,1893.6,1893.5,3.08752]
[1741946806413,2.49059205,1893.6,1893.5,2.0312]
[1741946806612,2.49059205,1893.6,1893.5,3.08752]
[1741946807814,1.06419205,1893.6,1893.5,3.08752]
[1741946808014,2.40739205,1893.6,1893.5,3.08752]
[1741946809010,1.05637,1893.5,1893.4,1.05637]
[1741946809207,1.05637,1893.5,1893.3,3.21572205]
[1741946809208,2.1613,1893.5,1893.3,4.62872205]
[1741946809407,3.21767,1893.5,1893.4,2.46938]
[1741946809710,3.9252,1893.5,1893.3,0.00792205]
[1741946809911,1.05638,1893.4,1893.3,1.42092205]
[1741946810409,3.34038,1893.4,1893.3,1.42092205]
[1741946810806,3.34038,1893.4,1893.3,0.00792205]
[1741946811412,3.34038,1893.4,1893.3,1.42092205]
[1741946811618,3.34038,1893.4,1893.3,2.47736205]
[1741946811817,1.05638,1893.4,1893.3,2.47736205]
[1741946812020,3.34038,1893.4,1893.3,2.47736205]
[1741946814514,3.34038,1893.4,1893.3,1.42092205]
[1741946816312,3.34038,1893.4,1893.3,0.00792205]
[1741946817715,3.34038,1893.4,1893.3,1.06436205]
[1741946817923,3.34038,1893.4,1893.3,0.72712205]
[1741946818523,3.34038,1893.4,1893.3,2.13392205]
[1741946820117,3.34038,1893.4,1893.3,0.00792205]
[1741946820522,3.34038,1893.4,1893.3,1.41472205]
[1741946821823,3.34038,1893.4,1893.3,2.47116205]
[1741946822130,3.34038,1893.4,1893.3,1.41472205]
[1741946825727,1.05638,1893.4,1893.3,2.47116205]
[1741946825929,3.34038,1893.4,1893.3,2.47116205]
[1741946826223,3.34038,1893.4,1893.3,1.41472205]
[1741946826728,6.54818,1893.4,1893.3,0.00792205]
[1741946827626,7.91108,1893.4,1893.3,0.00792205]
[1741946828732,6.8547,1893.4,1892.8,3.2078]
[1741946828925,1.05664,1893.0,1892.9,2.1214]
[1741946829128,1.05677,1892.7,1892.1,2.64273]
[1741946829326,1.05688,1892.6,1892.4,1.73032]
[1741946829527,1.74138,1892.6,1892.5,1.448]
[1741946829726,2.284,1892.7,1892.6,1.05683]
[1741946830031,3.34869205,1892.7,1892.6,1.76543]
[1741946830233,1.06469205,1892.7,1892.6,0.7086]
[1741946830439,0.00792205,1892.7,1892.5,1.448]
[1741946830641,1.05683,1892.6,1892.5,2.1566]
[1741946831448,1.05683,1892.6,1892.5,3.21348]
[1741946832446,0.00792205,1892.7,1892.5,2.1566]
[1741946832647,1.06474205,1892.7,1892.6,1.3239]
[1741946835345,0.00792205,1892.7,1892.4,0.6734]
[1741946835548,4.04927,1892.6,1892.4,1.73029]
[1741946835843,4.04927,1892.6,1892.5,1.3318]
[1741946839145,7.25707,1892.6,1892.5,1.3318]
[1741946839742,1.05688,1892.5,1892.4,0.6734]
[1741946840050,1.05688,1892.5,1892.4,2.0833]
[1741946841938,1.05688,1892.5,1892.4,3.14024]
[1741946842654,1.05688,1892.5,1892.4,2.0833]
[1741946842952,1.05688,1892.5,1892.4,3.14024]
[1741946843347,6.54864,1892.6,1892.5,1.05688]
[1741946843553,6.54864,1892.6,1892.5,2.50758]
[1741946843854,0.00792205,1892.7,1892.6,1.05683]
[1741946844151,0.00792205,1892.7,1892.6,3.18923]
[1741946844656,7.01262,1893.0,1892.9,1.05666]
[1741946844951,2.285,1893.2,1892.7,4.6585]
[1741946845150,1.05657,1893.1,1893.0,1.05659]
[1741946845351,1.05655,1893.1,1893.0,1.05659]
[1741946845548,2.285,1893.2,1893.0,3.2078]
[1741946845854,2.285,1893.2,1893.1,2.47345]
[1741946846550,0.00792205,1893.3,1893.1,1.4169]
[1741946846752,0.00792205,1893.3,1893.2,2.47339]
[1741946848350,1.06436205,1893.3,1893.2,2.47339]
[1741946848552,2.39266205,1893.3,1893.2,2.47339]
[1741946848752,1.33622205,1893.3,1893.2,2.47339]
[1741946848957,0.00792205,1893.3,1893.2,2.47339]
[1741946849460,0.00792205,1893.3,1893.2,1.4169]
[1741946849648,2.39266205,1893.3,1893.2,1.4169]
[1741946850259,1.33622205,1893.3,1893.2,2.47339]
[1741946850458,0.00792205,1893.3,1893.2,2.47339]
[1741946850849,0.00792205,1893.3,1893.2,5.68119]
[1741946851260,1.3283,1893.6,1893.2,5.68119]
[1741946851457,3.2078,1894.2,1893.5,3.2078]
[1741946851651,2.44867,1894.0,1893.8,1.05616]
[1741946851956,2.285,1894.1,1893.7,3.2078]
[1741946852152,2.285,1894.1,1894.0,1.05605]
[1741946852460,3.21572205,1894.2,1893.8,3.99556]
[1741946852666,3.21572205,1894.2,1894.1,1.05599]
[1741946852958,4.27165205,1894.2,1894.1,1.05599]
[1741946853350,5.66425205,1894.2,1894.1,1.05599]
[1741946854255,4.60832205,1894.2,1894.1,1.05599]
[1741946854455,3.21572205,1894.2,1894.1,1.05599]
[1741946854761,4.56612205,1894.2,1894.1,1.05599]
[1741946854959,4.56612205,1894.2,1894.1,2.40049]
[1741946855161,5.62205205,1894.2,1894.1,1.3445]
[1741946855957,1.05605,1894.0,1893.9,0.00792205]
[1741946856156,1.3504,1894.1,1893.9,0.00792205]
[1741946856463,1.3504,1894.1,1893.9,1.06398205]
[1741946856464,2.40641,1894.1,1893.9,1.06398205]
[1741946856758,1.3504,1894.1,1893.9,0.00792205]
[1741946856961,3.6364,1894.1,1894.0,2.40055]
[1741946857461,0.00792205,1894.2,1894.0,1.3445]
[1741946857661,0.00792205,1894.2,1894.1,6.33319]
[1741946860466,0.00792205,1894.2,1894.1,2.0694]
[1741946860961,0.00792205,1894.2,1894.1,3.12539]
[1741946861269,1.06385205,1894.2,1894.1,3.12539]
[1741946861463,2.37525205,1894.2,1894.1,2.0694]
[1741946862166,1.05605,1894.0,1893.9,4.27179205]
[1741946862566,1.05605,1894.0,1893.9,0.00792205]
[1741946863155,2.45355,1894.0,1893.9,0.00792205]
[1741946863566,3.76495,1894.0,1893.9,0.00792205]
[1741946865666,1.05627,1893.6,1893.5,2.50819]